[Event "Titled Tuesday Blitz August 22 Early 2023"]
[White "kaanadayhamle"]
[Black "Nazaretyan, Tigran"]
[BlackFideId "24162345"]
[WhiteElo "2363"]
[BlackElo "2545"]
[Result "0-1"]
[Round "10"]
[TimeControl "180+1"]
[Date "2023.08.22"]
[WhiteClock "0:00:00"]
[BlackClock "0:00:22"]
[Board "86"]

1. e4 {[%clk 0:03:00]}  c5 {[%clk 0:02:59]} 2. Nf3 {[%clk 0:03:00]}  Nc6 {[%clk 0:02:58]} 3. Bb5 {[%clk 0:02:59]}  g6 {[%clk 0:02:57]} 4. Bxc6 {[%clk 0:02:59]}  dxc6 {[%clk 0:02:56]} 5. O-O {[%clk 0:02:59]}  Bg7 {[%clk 0:02:56]} 6. h3 {[%clk 0:02:57]}  Nf6 {[%clk 0:02:56]} 7. Re1 {[%clk 0:02:56]}  Nd7 {[%clk 0:02:55]} 8. c3 {[%clk 0:02:54]}  e5 {[%clk 0:02:54]} 9. d3 {[%clk 0:02:54]}  Nf8 {[%clk 0:02:52]} 10. a4 {[%clk 0:02:54]}  a5 {[%clk 0:02:52]} 11. Na3 {[%clk 0:02:54]}  Ne6 {[%clk 0:02:51]} 12. Nc4 {[%clk 0:02:53]}  Qc7 {[%clk 0:02:51]} 13. Be3 {[%clk 0:02:50]}  O-O {[%clk 0:02:49]} 14. Qb3 {[%clk 0:02:44]}  Rd8 {[%clk 0:02:28]} 15. Rad1 {[%clk 0:02:43]}  Rb8 {[%clk 0:02:25]} 16. Ng5 {[%clk 0:02:39]}  b5 {[%clk 0:02:21]} 17. axb5 {[%clk 0:02:32]}  cxb5 {[%clk 0:02:21]} 18. Na3 {[%clk 0:02:31]}  a4 {[%clk 0:02:16]} 19. Qa2 {[%clk 0:02:13]}  h6 {[%clk 0:02:12]} 20. Nf3 {[%clk 0:02:07]}  Ba6 {[%clk 0:02:00]} 21. Nc2 {[%clk 0:01:54]}  Qc6 {[%clk 0:01:56]} 22. g3 {[%clk 0:01:40]}  b4 {[%clk 0:01:56]} 23. cxb4 {[%clk 0:01:23]}  cxb4 {[%clk 0:01:52]} 24. Qb1 {[%clk 0:01:24]}  Qb5 {[%clk 0:01:30]} 25. d4 {[%clk 0:01:18]}  exd4 {[%clk 0:01:21]} 26. Ncxd4 {[%clk 0:01:18]}  Nxd4 {[%clk 0:01:19]} 27. Nxd4 {[%clk 0:01:19]}  Qe8 {[%clk 0:01:02]} 28. f3 {[%clk 0:00:28]}  Qe5 {[%clk 0:00:48]} 29. Kg2 {[%clk 0:00:18]}  Qe8 {[%clk 0:00:42]} 30. Qc1 {[%clk 0:00:10]}  Rbc8 {[%clk 0:00:40]} 31. Qd2 {[%clk 0:00:10]}  Rc4 {[%clk 0:00:32]} 32. Qf2 {[%clk 0:00:09]}  Qd7 {[%clk 0:00:28]} 33. Nf5 {[%clk 0:00:05]}  Qxd1 {[%clk 0:00:24]} 34. Rxd1 {[%clk 0:00:06]}  Rxd1 {[%clk 0:00:24]} 35. Nxg7 {[%clk 0:00:07]}  b3 {[%clk 0:00:24]} 36. Bd2 {[%clk 0:00:03]}  Rc2 {[%clk 0:00:23]} 37. Qa7 {[%clk 0:00:00]}  Rcxd2+ {[%clk 0:00:22]} 0-1


[Site "https://www.chess.com"]

[Event "Titled Tuesday Blitz August 22 Early 2023"]
[White "Molina, Roberto Junio Brito"]
[Black "Khamdamova, Afruza"]
[WhiteFideId "2109450"]
[BlackFideId "14210444"]
[WhiteElo "2810"]
[BlackElo "2492"]
[Result "1-0"]
[Round "10"]
[TimeControl "180+1"]
[Date "2023.08.22"]
[WhiteClock "0:00:12"]
[BlackClock "0:00:02"]
[Board "88"]

1. e4 {[%clk 0:03:00]}  e6 {[%clk 0:02:59]} 2. d4 {[%clk 0:03:00]}  d5 {[%clk 0:02:59]} 3. Nd2 {[%clk 0:03:00]}  c5 {[%clk 0:02:59]} 4. exd5 {[%clk 0:03:00]}  cxd4 {[%clk 0:02:55]} 5. Bb5+ {[%clk 0:02:50]}  Bd7 {[%clk 0:02:54]} 6. Qe2 {[%clk 0:02:50]}  Qe7 {[%clk 0:02:43]} 7. dxe6 {[%clk 0:02:41]}  Qxe6 {[%clk 0:02:43]} 8. Qxe6+ {[%clk 0:02:39]}  fxe6 {[%clk 0:02:42]} 9. Bxd7+ {[%clk 0:02:39]}  Nxd7 {[%clk 0:02:43]} 10. Ngf3 {[%clk 0:02:39]}  Bc5 {[%clk 0:02:41]} 11. Nb3 {[%clk 0:02:39]}  Bb4+ {[%clk 0:02:30]} 12. Bd2 {[%clk 0:02:39]}  Bxd2+ {[%clk 0:02:30]} 13. Kxd2 {[%clk 0:02:40]}  O-O-O {[%clk 0:02:21]} 14. Rae1 {[%clk 0:02:37]}  Ngf6 {[%clk 0:01:48]} 15. Rxe6 {[%clk 0:02:33]}  Nb6 {[%clk 0:01:47]} 16. Nfxd4 {[%clk 0:02:06]}  Rhf8 {[%clk 0:01:33]} 17. f3 {[%clk 0:02:02]}  Nbd5 {[%clk 0:01:29]} 18. g3 {[%clk 0:01:45]}  a6 {[%clk 0:01:15]} 19. c3 {[%clk 0:01:39]}  Kb8 {[%clk 0:01:13]} 20. Rhe1 {[%clk 0:01:38]}  h5 {[%clk 0:01:11]} 21. Kc1 {[%clk 0:01:36]}  h4 {[%clk 0:01:07]} 22. R6e2 {[%clk 0:01:35]}  hxg3 {[%clk 0:01:03]} 23. hxg3 {[%clk 0:01:36]}  Rd7 {[%clk 0:00:56]} 24. Nc5 {[%clk 0:01:31]}  Rdf7 {[%clk 0:00:54]} 25. Nce6 {[%clk 0:01:23]}  Rc8 {[%clk 0:00:52]} 26. g4 {[%clk 0:01:22]}  Nd7 {[%clk 0:00:50]} 27. Kb1 {[%clk 0:01:03]}  N7b6 {[%clk 0:00:48]} 28. Ng5 {[%clk 0:00:58]}  Rf6 {[%clk 0:00:48]} 29. Ne4 {[%clk 0:00:57]}  Rh6 {[%clk 0:00:41]} 30. Nf5 {[%clk 0:00:50]}  Rh3 {[%clk 0:00:35]} 31. Rf2 {[%clk 0:00:46]}  g6 {[%clk 0:00:33]} 32. Ne3 {[%clk 0:00:41]}  Nf4 {[%clk 0:00:32]} 33. Rd1 {[%clk 0:00:36]}  Re8 {[%clk 0:00:30]} 34. Nc2 {[%clk 0:00:31]}  Nc4 {[%clk 0:00:29]} 35. Ng5 {[%clk 0:00:24]}  Rg3 {[%clk 0:00:23]} 36. b3 {[%clk 0:00:22]}  Ne3 {[%clk 0:00:22]} 37. Nxe3 {[%clk 0:00:21]}  Rxe3 {[%clk 0:00:23]} 38. Kc2 {[%clk 0:00:18]}  Ka7 {[%clk 0:00:17]} 39. Rd4 {[%clk 0:00:17]}  Ne6 {[%clk 0:00:14]} 40. Nxe6 {[%clk 0:00:17]}  Rxe6 {[%clk 0:00:14]} 41. Kd2 {[%clk 0:00:18]}  Rg1 {[%clk 0:00:14]} 42. Kd3 {[%clk 0:00:17]}  Rd1+ {[%clk 0:00:14]} 43. Rd2 {[%clk 0:00:17]}  Rf1 {[%clk 0:00:14]} 44. Rf4 {[%clk 0:00:16]}  Rd6+ {[%clk 0:00:13]} 45. Ke2 {[%clk 0:00:15]}  Rf2+ {[%clk 0:00:13]} 46. Kxf2 {[%clk 0:00:16]}  Rxd2+ {[%clk 0:00:14]} 47. Ke3 {[%clk 0:00:16]}  Rxa2 {[%clk 0:00:14]} 48. Rf6 {[%clk 0:00:17]}  Rc2 {[%clk 0:00:14]} 49. Kd3 {[%clk 0:00:17]}  Rb2 {[%clk 0:00:15]} 50. b4 {[%clk 0:00:18]}  b6 {[%clk 0:00:14]} 51. Rxg6 {[%clk 0:00:18]}  a5 {[%clk 0:00:15]} 52. bxa5 {[%clk 0:00:17]}  bxa5 {[%clk 0:00:15]} 53. Re6 {[%clk 0:00:15]}  a4 {[%clk 0:00:15]} 54. Re4 {[%clk 0:00:15]}  Ra2 {[%clk 0:00:15]} 55. g5 {[%clk 0:00:15]}  Kb6 {[%clk 0:00:15]} 56. g6 {[%clk 0:00:14]}  Rg2 {[%clk 0:00:02]} 57. Rg4 {[%clk 0:00:12]} 1-0


[Site "https://www.chess.com"]

[Event "Titled Tuesday Blitz August 22 Early 2023"]
[White "Agibileg, Uurtsaikh"]
[Black "DeyanKostov"]
[WhiteFideId "4901606"]
[WhiteElo "2613"]
[BlackElo "2475"]
[Result "1-0"]
[Round "10"]
[TimeControl "180+1"]
[Date "2023.08.22"]
[WhiteClock "0:02:31"]
[BlackClock "0:01:42"]
[Board "90"]

1. d4 {[%clk 0:03:00]}  d5 {[%clk 0:02:58]} 2. c4 {[%clk 0:03:01]}  dxc4 {[%clk 0:02:59]} 3. e4 {[%clk 0:03:00]}  c5 {[%clk 0:02:59]} 4. d5 {[%clk 0:02:59]}  Nf6 {[%clk 0:03:00]} 5. Nc3 {[%clk 0:02:59]}  b5 {[%clk 0:03:01]} 6. e5 {[%clk 0:02:58]}  b4 {[%clk 0:03:01]} 7. exf6 {[%clk 0:02:56]}  bxc3 {[%clk 0:03:01]} 8. fxg7 {[%clk 0:02:54]}  Bxg7 {[%clk 0:03:00]} 9. bxc3 {[%clk 0:02:49]}  Bxc3+ {[%clk 0:03:00]} 10. Bd2 {[%clk 0:02:50]}  Bxa1 {[%clk 0:02:52]} 11. Qxa1 {[%clk 0:02:50]}  Rg8 {[%clk 0:02:52]} 12. Bxc4 {[%clk 0:02:51]}  Nd7 {[%clk 0:02:50]} 13. Nf3 {[%clk 0:02:50]}  Nb6 {[%clk 0:02:51]} 14. Bb5+ {[%clk 0:02:47]}  Bd7 {[%clk 0:02:51]} 15. Bd3 {[%clk 0:02:46]}  f5 {[%clk 0:02:36]} 16. O-O {[%clk 0:02:42]}  Qc7 {[%clk 0:02:34]} 17. Ne5 {[%clk 0:02:39]}  O-O-O {[%clk 0:01:50]} 18. Bf4 {[%clk 0:02:32]}  Nxd5 {[%clk 0:01:47]} 19. Ba6+ {[%clk 0:02:32]}  Kb8 {[%clk 0:01:45]} 20. Nxd7+ {[%clk 0:02:33]}  Rxd7 {[%clk 0:01:42]} 21. Bxc7+ {[%clk 0:02:31]} 1-0


[Site "https://www.chess.com"]

[Event "Titled Tuesday Blitz August 22 Early 2023"]
[White "Tologon tegin, Semetei"]
[Black "Szyszylo, Rafal"]
[WhiteFideId "13800574"]
[BlackFideId "1109626"]
[WhiteElo "2601"]
[BlackElo "2466"]
[Result "1-0"]
[Round "10"]
[TimeControl "180+1"]
[Date "2023.08.22"]
[WhiteClock "0:00:29"]
[BlackClock "0:00:00"]
[Board "91"]

1. e4 {[%clk 0:02:53]}  d6 {[%clk 0:03:00]} 2. d4 {[%clk 0:02:53]}  Nf6 {[%clk 0:03:00]} 3. Nc3 {[%clk 0:02:53]}  g6 {[%clk 0:03:00]} 4. Nf3 {[%clk 0:02:54]}  Bg7 {[%clk 0:03:00]} 5. Be2 {[%clk 0:02:53]}  Kf8 {[%clk 0:02:59]} 6. h3 {[%clk 0:02:53]}  Kg8 {[%clk 0:03:00]} 7. Be3 {[%clk 0:02:53]}  Nbd7 {[%clk 0:02:57]} 8. Qd2 {[%clk 0:02:53]}  e5 {[%clk 0:02:57]} 9. O-O-O {[%clk 0:02:52]}  Qe7 {[%clk 0:02:43]} 10. dxe5 {[%clk 0:02:47]}  Nxe5 {[%clk 0:02:41]} 11. Nxe5 {[%clk 0:02:46]}  dxe5 {[%clk 0:02:42]} 12. Qd8+ {[%clk 0:02:43]}  Bf8 {[%clk 0:02:41]} 13. Bh6 {[%clk 0:02:41]}  c6 {[%clk 0:02:19]} 14. a4 {[%clk 0:01:55]}  b6 {[%clk 0:02:01]} 15. Ba6 {[%clk 0:01:36]}  Bxa6 {[%clk 0:01:13]} 16. Qxa8 {[%clk 0:01:34]}  Ne8 {[%clk 0:01:01]} 17. Bxf8 {[%clk 0:01:31]}  Kxf8 {[%clk 0:01:02]} 18. Rd8 {[%clk 0:01:28]}  Bb7 {[%clk 0:00:55]} 19. Rxe8+ {[%clk 0:01:27]}  Qxe8 {[%clk 0:00:55]} 20. Qxb7 {[%clk 0:01:27]}  Kg7 {[%clk 0:00:49]} 21. Qxa7 {[%clk 0:01:25]}  Qd8 {[%clk 0:00:31]} 22. h4 {[%clk 0:01:12]}  Qd4 {[%clk 0:00:31]} 23. Rf1 {[%clk 0:01:00]}  Qb4 {[%clk 0:00:26]} 24. Qc7 {[%clk 0:00:55]}  Qc5 {[%clk 0:00:25]} 25. Kb1 {[%clk 0:00:53]}  Re8 {[%clk 0:00:24]} 26. f4 {[%clk 0:00:51]}  Re7 {[%clk 0:00:24]} 27. Qb8 {[%clk 0:00:50]}  exf4 {[%clk 0:00:20]} 28. Qxf4 {[%clk 0:00:48]}  Qd4 {[%clk 0:00:20]} 29. g4 {[%clk 0:00:44]}  h6 {[%clk 0:00:20]} 30. g5 {[%clk 0:00:42]}  hxg5 {[%clk 0:00:18]} 31. hxg5 {[%clk 0:00:43]}  Kg8 {[%clk 0:00:16]} 32. Qf6 {[%clk 0:00:40]}  Rd7 {[%clk 0:00:15]} 33. Qxc6 {[%clk 0:00:38]}  Re7 {[%clk 0:00:02]} 34. Nd5 {[%clk 0:00:36]}  Re6 {[%clk 0:00:01]} 35. Nf6+ {[%clk 0:00:33]}  Kg7 {[%clk 0:00:01]} 36. Qc8 {[%clk 0:00:30]}  Rxf6 {[%clk 0:00:01]} 37. gxf6+ {[%clk 0:00:30]}  Kh6 {[%clk 0:00:02]} 38. Qh3+ {[%clk 0:00:29]}  Kg5 {[%clk 0:00:00]} 39. Qg3+ {[%clk 0:00:29]} 1-0


[Site "https://www.chess.com"]

[Event "Titled Tuesday Blitz August 22 Early 2023"]
[White "Womacka, Mathias"]
[Black "Czopor, Maciej"]
[WhiteFideId "4611390"]
[BlackFideId "21805431"]
[WhiteElo "2456"]
[BlackElo "2597"]
[Result "0-1"]
[Round "10"]
[TimeControl "180+1"]
[Date "2023.08.22"]
[WhiteClock "0:00:13"]
[BlackClock "0:00:03"]
[Board "92"]

1. e4 {[%clk 0:03:00]}  c5 {[%clk 0:02:56]} 2. Nf3 {[%clk 0:03:00]}  a6 {[%clk 0:02:53]} 3. c4 {[%clk 0:02:59]}  Nc6 {[%clk 0:02:49]} 4. d4 {[%clk 0:02:58]}  cxd4 {[%clk 0:02:50]} 5. Nxd4 {[%clk 0:02:58]}  e5 {[%clk 0:02:51]} 6. Nf5 {[%clk 0:02:58]}  d5 {[%clk 0:02:51]} 7. cxd5 {[%clk 0:02:56]}  Bxf5 {[%clk 0:02:51]} 8. exf5 {[%clk 0:02:56]}  Nd4 {[%clk 0:02:52]} 9. Bd3 {[%clk 0:02:49]}  Nf6 {[%clk 0:02:50]} 10. O-O {[%clk 0:02:48]}  Nxd5 {[%clk 0:02:45]} 11. Nc3 {[%clk 0:02:48]}  Be7 {[%clk 0:02:42]} 12. Be4 {[%clk 0:02:46]}  Nf6 {[%clk 0:02:24]} 13. Bxb7 {[%clk 0:02:43]}  Ra7 {[%clk 0:02:24]} 14. Qa4+ {[%clk 0:02:27]}  Kf8 {[%clk 0:02:23]} 15. Be4 {[%clk 0:02:21]}  h5 {[%clk 0:01:13]} 16. Be3 {[%clk 0:02:06]}  h4 {[%clk 0:01:11]} 17. Rad1 {[%clk 0:01:43]}  Rd7 {[%clk 0:01:06]} 18. Bxd4 {[%clk 0:01:26]}  exd4 {[%clk 0:01:04]} 19. Bc6 {[%clk 0:01:14]}  Rd6 {[%clk 0:01:04]} 20. Ne4 {[%clk 0:01:13]}  Nxe4 {[%clk 0:01:03]} 21. Bxe4 {[%clk 0:01:14]}  h3 {[%clk 0:01:00]} 22. g3 {[%clk 0:01:14]}  d3 {[%clk 0:01:00]} 23. Rd2 {[%clk 0:00:52]}  Rd4 {[%clk 0:00:59]} 24. Qc6 {[%clk 0:00:51]}  Rh6 {[%clk 0:01:00]} 25. Qa8 {[%clk 0:00:47]}  Qxa8 {[%clk 0:00:59]} 26. Bxa8 {[%clk 0:00:48]}  Bb4 {[%clk 0:00:58]} 27. Rdd1 {[%clk 0:00:43]}  d2 {[%clk 0:00:58]} 28. a3 {[%clk 0:00:42]}  Bc5 {[%clk 0:00:59]} 29. b4 {[%clk 0:00:41]}  Bb6 {[%clk 0:00:55]} 30. Bb7 {[%clk 0:00:40]}  Ba7 {[%clk 0:00:49]} 31. Bf3 {[%clk 0:00:21]}  Rf6 {[%clk 0:00:37]} 32. Be2 {[%clk 0:00:20]}  Rc6 {[%clk 0:00:22]} 33. Rb1 {[%clk 0:00:17]}  Rdd6 {[%clk 0:00:09]} 34. Rfd1 {[%clk 0:00:17]}  Rc2 {[%clk 0:00:04]} 35. Bf1 {[%clk 0:00:16]}  Ra2 {[%clk 0:00:04]} 36. Bxh3 {[%clk 0:00:16]}  Rxa3 {[%clk 0:00:04]} 37. Bf1 {[%clk 0:00:16]}  Rf3 {[%clk 0:00:04]} 38. Bc4 {[%clk 0:00:11]}  Rxf2 {[%clk 0:00:04]} 39. Kh1 {[%clk 0:00:11]}  Ke7 {[%clk 0:00:02]} 40. b5 {[%clk 0:00:11]}  a5 {[%clk 0:00:02]} 41. Rb4 {[%clk 0:00:11]}  axb4 {[%clk 0:00:02]} 42. b6 {[%clk 0:00:08]}  Bxb6 {[%clk 0:00:02]} 43. Kg1 {[%clk 0:00:09]}  Rf4+ {[%clk 0:00:02]} 44. Kg2 {[%clk 0:00:09]}  Rxc4 {[%clk 0:00:03]} 45. Kh3 {[%clk 0:00:09]}  Rc1 {[%clk 0:00:03]} 46. g4 {[%clk 0:00:10]}  Rxd1 {[%clk 0:00:03]} 47. g5 {[%clk 0:00:10]}  Rg1 {[%clk 0:00:03]} 48. f6+ {[%clk 0:00:11]}  gxf6 {[%clk 0:00:03]} 49. gxf6+ {[%clk 0:00:12]}  Kxf6 {[%clk 0:00:02]} 50. Kh4 {[%clk 0:00:12]}  Rd4+ {[%clk 0:00:02]} 51. Kh5 {[%clk 0:00:13]}  Rg5+ {[%clk 0:00:02]} 52. Kh6 {[%clk 0:00:13]}  Rh4# {[%clk 0:00:03]} 0-1


[Site "https://www.chess.com"]

[Event "Titled Tuesday Blitz August 22 Early 2023"]
[White "Begunov, Konstantin"]
[Black "Borgaonkar Akshay"]
[WhiteFideId "4118510"]
[BlackFideId "25639110"]
[WhiteElo "2440"]
[BlackElo "2580"]
[Result "0-1"]
[Round "10"]
[TimeControl "180+1"]
[Date "2023.08.22"]
[WhiteClock "0:00:05"]
[BlackClock "0:01:29"]
[Board "93"]

1. d4 {[%clk 0:02:57]}  Nf6 {[%clk 0:02:59]} 2. c4 {[%clk 0:02:56]}  g6 {[%clk 0:03:00]} 3. f3 {[%clk 0:02:56]}  Bg7 {[%clk 0:03:01]} 4. e4 {[%clk 0:02:56]}  d6 {[%clk 0:03:01]} 5. Nc3 {[%clk 0:02:56]}  O-O {[%clk 0:03:02]} 6. Be3 {[%clk 0:02:57]}  c5 {[%clk 0:03:01]} 7. dxc5 {[%clk 0:02:58]}  dxc5 {[%clk 0:03:01]} 8. Qxd8 {[%clk 0:02:58]}  Rxd8 {[%clk 0:03:02]} 9. Bxc5 {[%clk 0:02:59]}  Nc6 {[%clk 0:03:03]} 10. Nd5 {[%clk 0:02:59]}  Nd7 {[%clk 0:03:01]} 11. Nxe7+ {[%clk 0:02:59]}  Nxe7 {[%clk 0:03:01]} 12. Bxe7 {[%clk 0:03:00]}  Re8 {[%clk 0:03:01]} 13. Ba3 {[%clk 0:03:01]}  f5 {[%clk 0:02:59]} 14. O-O-O {[%clk 0:03:01]}  fxe4 {[%clk 0:02:59]} 15. c5 {[%clk 0:03:01]}  e3 {[%clk 0:02:54]} 16. Bc4+ {[%clk 0:02:56]}  Kh8 {[%clk 0:02:53]} 17. Ne2 {[%clk 0:02:54]}  Ne5 {[%clk 0:02:45]} 18. Bd5 {[%clk 0:02:51]}  Bf5 {[%clk 0:02:38]} 19. Bxb7 {[%clk 0:02:37]}  Rad8 {[%clk 0:02:07]} 20. Rxd8 {[%clk 0:01:44]}  Rxd8 {[%clk 0:02:08]} 21. Be4 {[%clk 0:01:44]}  Rd2 {[%clk 0:02:00]} 22. Ng3 {[%clk 0:00:40]}  Nd3+ {[%clk 0:01:55]} 23. Bxd3 {[%clk 0:00:22]}  Bxd3 {[%clk 0:01:56]} 24. Rd1 {[%clk 0:00:19]}  Rc2+ {[%clk 0:01:56]} 25. Kb1 {[%clk 0:00:19]}  e2 {[%clk 0:01:49]} 26. Nxe2 {[%clk 0:00:17]}  Rxb2+ {[%clk 0:01:49]} 27. Kc1 {[%clk 0:00:14]}  Rc2+ {[%clk 0:01:31]} 28. Kb1 {[%clk 0:00:14]}  Rc3+ {[%clk 0:01:28]} 29. Rxd3 {[%clk 0:00:14]}  Rxd3 {[%clk 0:01:29]} 30. Bb2 {[%clk 0:00:11]}  Bxb2 {[%clk 0:01:28]} 31. Kxb2 {[%clk 0:00:12]}  Rd2+ {[%clk 0:01:29]} 32. Kc3 {[%clk 0:00:11]}  Rxe2 {[%clk 0:01:30]} 33. c6 {[%clk 0:00:05]}  Re6 {[%clk 0:01:29]} 0-1


[Site "https://www.chess.com"]

[Event "Titled Tuesday Blitz August 22 Early 2023"]
[White "Miszler, Levente"]
[Black "ExchangeAB"]
[WhiteFideId "763276"]
[WhiteElo "2508"]
[BlackElo "2424"]
[Result "1-0"]
[Round "10"]
[TimeControl "180+1"]
[Date "2023.08.22"]
[WhiteClock "0:00:16"]
[BlackClock "0:00:00"]
[Board "98"]

1. d4 {[%clk 0:02:53]}  Nf6 {[%clk 0:02:59]} 2. Nf3 {[%clk 0:02:53]}  c6 {[%clk 0:03:00]} 3. g3 {[%clk 0:02:50]}  d5 {[%clk 0:03:00]} 4. Bg2 {[%clk 0:02:51]}  Bf5 {[%clk 0:03:00]} 5. O-O {[%clk 0:02:51]}  h6 {[%clk 0:03:01]} 6. c4 {[%clk 0:02:51]}  e6 {[%clk 0:03:01]} 7. Nc3 {[%clk 0:02:51]}  Be7 {[%clk 0:03:01]} 8. Nd2 {[%clk 0:02:51]}  O-O {[%clk 0:03:01]} 9. e4 {[%clk 0:02:52]}  dxe4 {[%clk 0:03:01]} 10. Ndxe4 {[%clk 0:02:52]}  Nxe4 {[%clk 0:03:01]} 11. Nxe4 {[%clk 0:02:53]}  Nd7 {[%clk 0:03:02]} 12. Be3 {[%clk 0:02:52]}  Nf6 {[%clk 0:03:02]} 13. Qc2 {[%clk 0:02:48]}  Nxe4 {[%clk 0:02:46]} 14. Bxe4 {[%clk 0:02:49]}  Bxe4 {[%clk 0:02:47]} 15. Qxe4 {[%clk 0:02:50]}  a5 {[%clk 0:02:43]} 16. Rfd1 {[%clk 0:02:49]}  a4 {[%clk 0:02:43]} 17. d5 {[%clk 0:02:46]}  exd5 {[%clk 0:02:32]} 18. cxd5 {[%clk 0:02:47]}  cxd5 {[%clk 0:02:29]} 19. Rxd5 {[%clk 0:02:48]}  Qe8 {[%clk 0:02:27]} 20. Re5 {[%clk 0:02:47]}  f5 {[%clk 0:02:00]} 21. Qd5+ {[%clk 0:02:42]}  Qf7 {[%clk 0:01:59]} 22. Rxf5 {[%clk 0:02:38]}  Qxd5 {[%clk 0:01:56]} 23. Rxd5 {[%clk 0:02:39]}  Bf6 {[%clk 0:01:53]} 24. Rb1 {[%clk 0:02:31]}  Rfc8 {[%clk 0:01:49]} 25. b3 {[%clk 0:02:29]}  axb3 {[%clk 0:01:47]} 26. Rxb3 {[%clk 0:02:29]}  Rc7 {[%clk 0:01:39]} 27. Rd2 {[%clk 0:02:18]}  Kh7 {[%clk 0:01:26]} 28. Kg2 {[%clk 0:02:18]}  Rf7 {[%clk 0:01:25]} 29. Rc2 {[%clk 0:02:17]}  Ra4 {[%clk 0:01:23]} 30. Bf4 {[%clk 0:02:11]}  Bd4 {[%clk 0:01:17]} 31. Bc7 {[%clk 0:02:09]}  Bxf2 {[%clk 0:00:54]} 32. Rxb7 {[%clk 0:02:07]}  Bd4 {[%clk 0:00:45]} 33. Rb3 {[%clk 0:02:01]}  Ba7 {[%clk 0:00:34]} 34. Bf4 {[%clk 0:01:55]}  Rd7 {[%clk 0:00:33]} 35. Be5 {[%clk 0:01:51]}  Rd5 {[%clk 0:00:32]} 36. Re2 {[%clk 0:01:45]}  Bd4 {[%clk 0:00:32]} 37. Bxd4 {[%clk 0:01:42]}  Rdxd4 {[%clk 0:00:33]} 38. Rb7 {[%clk 0:01:42]}  Rg4 {[%clk 0:00:28]} 39. h3 {[%clk 0:01:37]}  Rg6 {[%clk 0:00:28]} 40. Rb3 {[%clk 0:01:34]}  h5 {[%clk 0:00:29]} 41. a3 {[%clk 0:01:32]}  Rga6 {[%clk 0:00:28]} 42. Ree3 {[%clk 0:01:32]}  h4 {[%clk 0:00:27]} 43. g4 {[%clk 0:01:31]}  Rf4 {[%clk 0:00:27]} 44. Rf3 {[%clk 0:01:30]}  Re4 {[%clk 0:00:27]} 45. Rf5 {[%clk 0:01:25]}  Re2+ {[%clk 0:00:27]} 46. Kf3 {[%clk 0:01:25]}  Ra2 {[%clk 0:00:25]} 47. Rh5+ {[%clk 0:01:25]}  Kg8 {[%clk 0:00:24]} 48. Rb8+ {[%clk 0:01:19]}  Kf7 {[%clk 0:00:24]} 49. Rf5+ {[%clk 0:01:20]}  Kg6 {[%clk 0:00:23]} 50. Rfb5 {[%clk 0:01:10]}  R2xa3+ {[%clk 0:00:23]} 51. Rb3 {[%clk 0:01:10]}  Rxb3+ {[%clk 0:00:23]} 52. Rxb3 {[%clk 0:01:10]}  Rc6 {[%clk 0:00:23]} 53. Rb5 {[%clk 0:01:09]}  Rc3+ {[%clk 0:00:22]} 54. Kf4 {[%clk 0:01:07]}  Rxh3 {[%clk 0:00:21]} 55. Rb6+ {[%clk 0:01:08]}  Kh7 {[%clk 0:00:21]} 56. Kg5 {[%clk 0:01:08]}  Rh1 {[%clk 0:00:21]} 57. Rb2 {[%clk 0:01:05]}  h3 {[%clk 0:00:20]} 58. Kh4 {[%clk 0:01:03]}  Kg6 {[%clk 0:00:19]} 59. Rb6+ {[%clk 0:00:58]}  Kf7 {[%clk 0:00:19]} 60. Rb7+ {[%clk 0:00:51]}  Kf6 {[%clk 0:00:20]} 61. Rb6+ {[%clk 0:00:51]}  Ke5 {[%clk 0:00:20]} 62. Kg3 {[%clk 0:00:50]}  Rc1 {[%clk 0:00:14]} 63. Kxh3 {[%clk 0:00:47]}  Rc7 {[%clk 0:00:12]} 64. Kh4 {[%clk 0:00:46]}  Kf4 {[%clk 0:00:12]} 65. Kh5 {[%clk 0:00:42]}  Rc1 {[%clk 0:00:09]} 66. Rb4+ {[%clk 0:00:38]}  Ke5 {[%clk 0:00:09]} 67. Kg6 {[%clk 0:00:36]}  Rc7 {[%clk 0:00:09]} 68. g5 {[%clk 0:00:34]}  Ke6 {[%clk 0:00:09]} 69. Rf4 {[%clk 0:00:33]}  Ke5 {[%clk 0:00:09]} 70. Rf7 {[%clk 0:00:32]}  Rc1 {[%clk 0:00:03]} 71. Kxg7 {[%clk 0:00:29]}  Ke6 {[%clk 0:00:03]} 72. g6 {[%clk 0:00:29]}  Rg1 {[%clk 0:00:03]} 73. Rf2 {[%clk 0:00:25]}  Rg3 {[%clk 0:00:04]} 74. Re2+ {[%clk 0:00:25]}  Kd7 {[%clk 0:00:03]} 75. Kf7 {[%clk 0:00:25]}  Rf3+ {[%clk 0:00:03]} 76. Kg8 {[%clk 0:00:25]}  Rg3 {[%clk 0:00:04]} 77. g7 {[%clk 0:00:26]}  Rg4 {[%clk 0:00:04]} 78. Rf2 {[%clk 0:00:19]}  Ke7 {[%clk 0:00:04]} 79. Rf7+ {[%clk 0:00:18]}  Ke6 {[%clk 0:00:04]} 80. Kf8 {[%clk 0:00:17]}  Ra4 {[%clk 0:00:04]} 81. Re7+ {[%clk 0:00:16]}  Kf6 {[%clk 0:00:04]} 82. g8=Q {[%clk 0:00:16]}  Ra8+ {[%clk 0:00:00]} 83. Re8 {[%clk 0:00:16]} 1-0


[Site "https://www.chess.com"]